Cogmind - Beta 14 @@@ ROGUE MODE // 2024.08.10 @ 14:23:38 Player: Brionna Result: Destroyed by G-47 Trooper with Particle Gun Performance ------------- Evolutions (1) 500 Regions Visited (3) 600 Robots Destroyed (74) 370 Value Destroyed (1623) 1623 Prototype IDs (3) 60 Alien Tech Used (0) 0 Bonus (200) 200 TOTAL SCORE: 3353 Bonus ------- High Alert Combat Kills 200 Cogmind --------- Core Integrity 0/400 Matter 265/300 Energy 99/100 System Corruption 0% Temperature Cool (11) Movement Treading (480) Ox4 Location -9/Mines Parts ------- > --- POWER (1) -------- (None) > --- PROPULSION (4) --- Light Treads Aluminum Leg > --- UTILITY (2) ------ Huge Storage Unit > --- WEAPON (2) ------- Particle Gun Heavy Assault Rifle > --- INVENTORY (25) --- Light Nuclear Core Improved Heat Sink Structural Scanner Small Laser Mini Grenade Launcher Mini Grenade Launcher Missile Launcher Missile Launcher Missile Launcher Missile Launcher Welding Torch Peak State ------------ > --- POWER ------------ Light Nuclear Core > --- PROPULSION ------- Improved Treads Improved Treads Aluminum Leg Aluminum Leg > --- UTILITY ---------- Huge Storage Unit High-capacity Matter Pod > --- WEAPON ----------- Mini Grenade Launcher Mini Grenade Launcher > --- INVENTORY -------- Light Ion Engine Structural Scanner Tractor Beam Light Assault Rifle Heavy Assault Rifle Mini Grenade Launcher Mini Grenade Launcher Missile Launcher Missile Launcher Missile Launcher Missile Launcher Welding Torch [Rating: 17] Favorites ----------- Power Light Ion Engine Engine Light Ion Engine Power Core Light Nuclear Core Propulsion Aluminum Leg Treads Light Treads Leg Aluminum Leg Utility High-capacity Matter Pod Device Tractor Beam Storage High-capacity Matter Pod Weapon Mini Grenade Launcher Energy Gun Medium Laser Ballistic Gun Light Assault Rifle Launcher Mini Grenade Launcher Build | -11 -10 -9 -9 ------- Run | Yrd Mat Mat Min Slots Evolved 2 | . . 2 . Power . | . . . . Propulsion 2 | . . 2 . Utility . | . . . . Weapon . | . . . . Parts Attached 40 | 6 9 23 2 Power 5 | 1 2 2 . Engine 4 | 1 2 1 . Core 1 | . . 1 . Reactor . | . . . . Propulsion 16 | 2 2 12 . Treads 8 | . 2 6 . Leg 8 | 2 . 6 . Wheel . | . . . . Hover . | . . . . Flight . | . . . . Utility 5 | 1 3 . 1 Device 1 | . . . 1 Storage 4 | 1 3 . . Processor . | . . . . Hackware . | . . . . Protection . | . . . . Artifact . | . . . . Weapon 14 | 2 2 9 1 Energy Gun 6 | 1 2 2 1 Energy Cannon . | . . . . Ballistic Gun 4 | 1 . 3 . Ballistic Cannon . | . . . . Launcher 4 | . . 4 . Special Weapon . | . . . . Impact Weapon . | . . . . Slashing Weapon . | . . . . Piercing Weapon . | . . . . Special Melee Weapon . | . . . . Unidentified Prototypes 1 | . 1 . . Parts Lost 17 | . 1 15 1 Power 4 | . 1 3 . Propulsion 8 | . . 8 . Utility 2 | . . 1 1 Weapon 3 | . . 3 . Highest Loss Streak 5 | . 1 5 1 To Critical Strikes . | . . . . Average Slot Usage (%) 85 | . 99 85 61 Engine 7 | . 13 6 . Core 2 | . . 2 . Treads 17 | . 9 19 11 Leg 13 | . 18 13 11 Storage 21 | . 27 21 11 Energy Gun 6 | . 18 3 8 Ballistic Gun 6 | . 9 5 11 Launcher 9 | . . 12 2 Peak Build Rating 17 | 6 12 17 10 Average Rating 12 | 4 8 13 9 On Entrance 6 | . 6 12 9 Naked Turns . | . . . . Heaviest Build 97 | 12 97 97 87 Greatest Support 86 | 20 46 86 20 Greatest Overweight (x) 4 | . 2 4 4 Average Overweight (x) 1 | . . 1 4 Largest Inventory Capacity 25 | 8 25 25 25 Average Capacity 22 | 7 9 25 25 Most Carried 18 | 5 8 18 13 Average Carried 11 | 2 5 13 11 Final Capacity 25 | 8 25 25 25 Final Carried 11 | 2 6 11 11 Class Distribution -------------------- 70% | Mutant 29% | Scavenger-Mutant Dominant Class ---------------- Mutant | -10/Materials Mutant | -9/Materials Scavenger-Mutant | -9/Mines Resources | -11 -10 -9 -9 ----------- Run | Yrd Mat Mat Min Matter Collected 1308 | 254 117 883 54 Remotely . | . . . . Salvage Created 1390 | . 186 1132 72 Parts 136 | . 23 109 4 Haulers Intercepted 2 | . . 2 . Recyclers Shooed 2 | . 1 1 . Parts Field Recycled . | . . . . Retrieved Matter . | . . . . Parts Self-Destructed . | . . . . Prevented . | . . . . Kills | -11 -10 -9 -9 ------- Run | Yrd Mat Mat Min Combat Hostiles Destroyed 48 | . 8 37 3 Guns 14 | . 8 5 1 AOE 34 | . . 32 2 Classes Destroyed 11 | . 3 8 . Worker 8 | . . 8 . Builder 7 | . . 7 . Tunneler 1 | . . 1 . Hauler 2 | . . 2 . Recycler 1 | . . 1 . Mechanic 1 | . . 1 . Watcher 6 | . 1 5 . Swarmer 17 | . 6 11 . Grunt 24 | . 2 19 3 Duelist 2 | . . 2 . Sentry 5 | . . 5 . Best Kill Streak 8 | . 4 8 3 Combat Bots Only 4 | . 3 4 3 Max Kills in Single Turn 4 | . 2 4 1 Gunslinging 1 | . 1 . . Exploded 4 | . . 4 1 Melee . | . . . . Uniques/NPCs Destroyed . | . . . . Combat | -11 -10 -9 -9 -------- Run | Yrd Mat Mat Min Hostile Shots Fired 268 | . 56 193 19 Missed 83 | . 13 66 4 Damage Taken 2763 | . 427 2119 217 Core 479 | . 78 327 74 Absorbed by Shields . | . . . . Core Remaining (%) 84 | 100 68 . . Volleys Fired 81 | . 20 55 6 Largest 2 | . 2 2 2 Hottest 95 | . 70 95 88 Shots Fired 140 | . 38 95 7 Gun 91 | . 38 49 4 Cannon . | . . . . Launcher 49 | . . 46 3 Special . | . . . . Kinetic 51 | . 20 28 3 Thermal 25 | . 18 6 1 Explosive 49 | . . 46 3 Electromagnetic 15 | . . 15 . Robot Hit Streak 15 | . 5 15 4 Robot Miss Streak 7 | . 4 7 1 Penetration Max . | . . . . Secondary Targets 4 | . 4 . . Max Gunslinging Chain 1 | . 1 . . Shots Hit Robots 70 | . 21 45 4 Core Hits 109 | . 13 91 5 Critical Kills . | . . . . Critical Parts Destroyed . | . . . . Critical Strikes 1 | . 1 . . Burn 1 | . 1 . . Melee Attacks . | . . . . Impact . | . . . . Slashing . | . . . . Piercing . | . . . . Sneak Attacks . | . . . . Combat Hostiles . | . . . . Follow-up Attacks . | . . . . Damage Inflicted 4589 | . 280 4061 248 Guns 726 | . 280 401 45 Cannons . | . . . . Explosions 3863 | . . 3660 203 Melee . | . . . . Ramming . | . . . . Kinetic 264 | . 105 127 32 Thermal 533 | . 175 345 13 Explosive 3501 | . . 3298 203 Electromagnetic 291 | . . 291 . Impact . | . . . . Slashing . | . . . . Piercing . | . . . . Highest Corruption . | . . . . Average Corruption . | . . . . Corruption Purged . | . . . . Corruption Blocked . | . . . . Overload Shots . | . . . . Overflow Damage 176 | . . 176 . Projectiles . | . . . . Explosions 176 | . . 176 . Melee . | . . . . Knockbacks . | . . . . Impact . | . . . . Kinetic . | . . . . Secondary . | . . . . Self-Inflicted Damage 346 | . . 325 21 Shots 12 | . . 11 1 Rammed . | . . . . Targets Rammed . | . . . . Kicked . | . . . . Crushed . | . . . . Highest Temperature 126 | . 87 126 2 Average Temperature 26 | . 26 26 1 Received Heat Transfer 852 | . 90 654 108 Siege Activations . | . . . . Robots Corrupted . | . . . . Combat Hostiles . | . . . . Parts Fried 1 | . . 1 . Impact Corruptions . | . . . . Robots Melted . | . . . . Combat Hostiles . | . . . . Parts Melted 2 | . 1 1 . Heat Transferred 1077 | . 592 448 37 Parts Sabotaged . | . . . . Parts Stolen . | . . . . Parts Stripped . | . . . . Power Chain Reactions 3 | . . 3 . Alert | -11 -10 -9 -9 ------- Run | Yrd Mat Mat Min Peak Influence 771 | . 202 771 408 Initial 300 | . . . 300 Average 367 | . 96 432 403 Maximum Alert Level 3 | . 1 3 2 Low Security (%) 27 | 100 92 15 . Level 1 20 | . 7 25 6 Level 2 41 | . . 45 93 Level 3 10 | . . 14 . Level 4 . | . . . . Level 5 . | . . . . High Security . | . . . . Max Security . | . . . . Squads Dispatched 5 | . 1 4 . Investigation 2 | . . 2 . Extermination . | . . . . Reinforcement 3 | . 1 2 . Assault . | . . . . Garrison . | . . . . Intercept . | . . . . Searches Triggered . | . . . . Construction Impeded . | . . . . Haulers Reinforced . | . . . . Active Scanning Responses . | . . . . Cargo Convoy Interrupts . | . . . . Stealth | -11 -10 -9 -9 --------- Run | Yrd Mat Mat Min Distress Signals 3 | . 2 1 . Communications Jammed . | . . . . Distress Signals . | . . . . Times Spotted 62 | . 11 46 5 Peak Tracking Total 4 | . 4 4 3 Tactical Retreats 1 | . . 1 . Traps | -11 -10 -9 -9 ------- Run | Yrd Mat Mat Min Traps Triggered 2 | . 1 1 . Indirectly . | . . . . Trap Hack Attempts . | . . . . Triggered . | . . . . Disarmed . | . . . . Reprogrammed . | . . . . Reused . | . . . . Traps Extracted . | . . . . Installed . | . . . . Triggered . | . . . . Machines | -11 -10 -9 -9 ---------- Run | Yrd Mat Mat Min Machines Disabled 11 | . . 10 1 Max in Single Turn 2 | . . 2 1 Machines Repaired . | . . . . Machines Dismantled . | . . . . Machines Sabotaged . | . . . . Overloaded Fab Kills . | . . . . Hacking | -11 -10 -9 -9 --------- Run | Yrd Mat Mat Min Machines Accessed 7 | . 3 4 . Terminals 4 | . 2 2 . Fabricators . | . . . . Repair Stations . | . . . . Recycling Units 2 | . 1 1 . Scanalyzers 1 | . . 1 . Garrison Access . | . . . . Total Hacks 18 | . 5 13 . Successful 10 | . 2 8 . Failed 8 | . 3 5 . Catastrophic 2 | . 2 . . Database Lockouts . | . . . . Manual . | . . . . Terminals 8 | . 4 4 . Fabricators . | . . . . Repair Stations . | . . . . Recycling Units 4 | . 1 3 . Scanalyzers 6 | . . 6 . Garrison Access . | . . . . Terminal Hacks 2 | . 1 1 . Record 1 | . 1 . . Terminal Index 1 | . . 1 . Fabricator Hacks . | . . . . Repair Station Hacks . | . . . . Recycling Unit Hacks 3 | . 1 2 . Recycle Component 2 | . . 2 . Retrieve Components 1 | . 1 . . Scanalyzer 5 | . . 5 . Insert Component 3 | . . 3 . Analyze 2 | . . 2 . Garrison Access Hacks . | . . . . Unauthorized Hacks . | . . . . Terminals . | . . . . Fabricators . | . . . . Repair Stations . | . . . . Recycling Units . | . . . . Scanalyzers . | . . . . Garrison Access . | . . . . Data Cores Recovered . | . . . . Used . | . . . . Hacking Detections 4 | . 1 3 . Full Trace Events 3 | . 1 2 . Feedback Events . | . . . . Feedback Blocked . | . . . . Robot Schematics Acquired . | . . . . Robots Built . | . . . . Authchips . | . . . . Time . | . . . . Total Robot Build Rating . | . . . . Part Schematics Acquired 2 | . . 2 . Parts Built . | . . . . Authchips . | . . . . Time . | . . . . Total Part Build Rating . | . . . . Parts Repaired . | . . . . Time . | . . . . Parts Recycled 2 | . . 2 . Recycled Matter . | . . . . Retrieved Matter . | . . . . Retrieved Components 3 | . 3 . . Parts Scanalyzed 2 | . . 2 . Part Schematics Acquired 2 | . . 2 . Parts Damaged . | . . . . Bothacking | -11 -10 -9 -9 ------------ Run | Yrd Mat Mat Min Used RIF Installer . | . . . . Robots Hacked . | . . . . Non-combat . | . . . . Combat . | . . . . Robot Hacks Applied . | . . . . Relay Couplers Released . | . . . . Fabnet Peak Effective % . | . . . . Robots Rewired . | . . . . Allies Hacked . | . . . . Hacks Repelled . | . . . . Allies | -11 -10 -9 -9 -------- Run | Yrd Mat Mat Min Total Allies . | . . . . Largest Group . | . . . . Highest-Rated Group . | . . . . Highest-Rated Ally . | . . . . Total Orders . | . . . . Ally Attacks . | . . . . Total Damage . | . . . . Kills . | . . . . Allies Corrupted . | . . . . Allies Melted . | . . . . Intel | -11 -10 -9 -9 ------- Run | Yrd Mat Mat Min Robot Analysis Total . | . . . . Derelict Logs Recovered 1 | . . . 1 Drone Launches . | . . . . Drone Recoveries . | . . . . Exploration | -11 -10 -9 -9 ------------- Run | Yrd Mat Mat Min Turns Passed 2963 | 72 453 2171 267 Spaces Moved 1061 | 58 251 700 52 Core 18 | 18 . . . Treads 647 | . 87 508 52 Legs 396 | 40 164 192 . Wheels . | . . . . Hover . | . . . . Flight . | . . . . Fastest Speed 50 | 50 120 240 480 Average Speed 246 | 98 140 279 480 Slowest Speed 480 | 120 320 480 480 Overloaded Moves . | . . . . Propulsion Burnouts . | . . . . Robots Hopped . | . . . . Cave-ins Triggered . | . . . . Exploration Rate (%) 26 | 4 40 52 8 Regions Visited 3 Branch Regions 1 Pre-discovered Areas . | . . . . Known Exits Taken . | . . . . Unknown Exits Taken 3 | 1 1 1 . Scrap Searched . | . . . . Spaces Dug . | . . . . Terrain Destroyed 354 | . . 325 29 Melee . | . . . . Projectile . | . . . . AOE 354 | . . 325 29 Terrain Rammed . | . . . . Walls Destroyed . | . . . . Machines Disabled . | . . . . Actions | -11 -10 -9 -9 --------- Run | Yrd Mat Mat Min Total 1279 | 73 317 826 63 Wait 32 | 2 15 15 . Move 1058 | 57 250 699 52 Hop . | . . . . Pick Up 48 | 8 14 24 2 Fast Attach . | . . . . Attach 36 | 6 7 21 2 Detach 6 | . . 6 . Swap 5 | . 3 2 . Drop 13 | . 8 4 1 Fire 81 | . 20 55 6 Melee . | . . . . Ram . | . . . . Kick . | . . . . Crush . | . . . . Escape Stasis . | . . . . Rewire . | . . . . Trap . | . . . . Miscellaneous . | . . . . Route ------- -11/Scrapyard -10/Materials -9/Materials -9/Mines History --------- Turn | Location | Event 12 | -11/Scrapyard | Discovered new exit (range 15) 73 | -11/Scrapyard | Entered Materials 314 | -10/Materials | Build established: Mutant 450 | -10/Materials | Discovered new exit (range 16) 526 | -10/Materials | Entered another Materials area 526 | -9/Materials | Evolved 2 slots: Propulsion x2 1489 | -9/Materials | Discovered new exit (range 6) 1801 | -9/Materials | Lost 3 parts (3n) 2082 | -9/Materials | Build established: Scavenger-Mutant 2272 | -9/Materials | Core integrity fell below 50% 2557 | -9/Materials | Build established: Mutant 2600 | -9/Materials | Core integrity fell below 20% 2636 | -9/Materials | Lost 5 parts (1p1n1u2w) 2697 | -9/Materials | Entered Mines 2783 | -9/Mines | Learned Materials terminal intel 2964 | -9/Mines | Destroyed by G-47 Trooper with Particle Gun Last Messages --------------- K-01 Serf collects debris. LOCATION=UNKNOWN GOAL=ESCAPE Something is scanning the area. G-34 Mercenary destroyed. Seismic Survey Station disabled. G-47 Trooper destroyed. The unstable cave ceiling collapses. G-34 Mercenary destroyed. Acquired 14 matter. Acquired 32 matter. Acquired 8 matter. The unstable cave ceiling collapses. Acquired Sml. Laser. Acquired Particle Gun. Dropped Mni. Grenade Launcher. The unstable cave ceiling collapses. Acquired derelict log, extracted data. Data stored: Materials terminal intel. Tractor Beam destroyed. Map ----- +----------------------------------------------------+ | ??????????????????????????????? | | ??????????????????????????????? | | ??????????????????????????????? | | ??????????????????????????????? | | ??????????????????????????????? | | ??????????????????????????????? | | ??????????????????????????????? | | ??????????????????????????????? | | ??????????????????????????????? | | ??????????????????????????????? | | ??????????????????????????????? | | ??????????????????????????????? | | ??????????????????????????????? | | ??????????????????????????????? | | ??????????????????????????????? | | ??????????????????????????????? | | ??????????????????????????????? | | ??????????????????????????????? | | ??????????????????????????????? | | ???????????????????????####???? | | ?????????#????????????## ###?? | | ?????????# ??????????## ##? | | ?????????# ########### #? | | ?????????# gg #? | | ?????????### ######### #? | | ???????????# #???????## @ ##? | | ???????????# #????????## #?? | | ???????????# #?????????## #?? | | ???????????# ####???????# #?? | | ??########## #???????# #?? | | ??# ### #???????## ##? | | ??# "" ## #????????# #? | | ?## ] ## ##???????## ##? | | ?# #????????###?? | | ?# #????????????? | | ?## ##????????????? | | ??## ### # ##?????????????? | | ???### # #####??????????????? | | | | | | | | | | | | | | | | | | | | | | | | | +----------------------------------------------------+ Best States ------------- Heat Dissipation 28 Energy Generation 14 Energy Capacity 280 Matter Stores 500 Matter Capacity 500 Sight Range 16 Terrain Scan Density 10 Evasion (%) 55 Recoil Reduction 4 Item Schematics ----------------- Aluminum Leg | -9/Materials | Scanalyzed Imp. EM Shotgun | -9/Materials | Scanalyzed Robot Schematics ------------------ None Fabricated ------------ Nothing Alien Tech Used ----------------- None Achievements -------------- Safety First Storm Trooper Challenges ------------ None Game ------ Seed AntimatterBehemothVibroblade Manual? 0 Play Time 00:25:06 Cumulative 2.0 hours Start 2024.08.10 @ 13:59:21 End 2024.08.10 @ 14:23:38 Sessions 1 Manual Loads 0 Difficulty Rogue Special Mode None Game No. 2 Rogue 1 Adventurer 1 Explorer 0 Win Type - Total 0 Types 0/0/0/0/0/0/0/0/0 Lore% 1 Gallery% 6 Achievement% 10 Wizard Run 0 Options --------- Layout 1 ASCII 0 Keyboard 0 Movement Mouse Keybinds 0 Fullscreen 1 Font 24/Smallcaps Map View 50x35 Zoom Use 0% Tactical HUD 0 Map Filters NONE Filters NONE Steam 1 RUN: 4b1b4a1f-bdc7-4fd3-be7a-ec9c36f16e3d